bitfinex/quotes_ETHUSD_20230105
["timestamp","ask_amount","ask_price","bid_price","bid_amount"]
[1672895535824,2.98917913,1254.7,1254.6,11.89022904]
[1672895538832,2.98917913,1254.7,1254.6,3.91956904]
[1672895539088,2.98917913,1254.7,1254.6,3.85596783]
[1672895539261,2.98917913,1254.7,1254.6,11.82662783]
[1672895539474,13.5598948,1254.8,1254.6,11.89022904]
[1672895540840,2.98917913,1254.7,1254.6,11.89022904]
[1672895541765,13.5598948,1254.8,1254.6,11.89022904]
[1672895542414,2.98917913,1254.7,1254.6,11.89022904]
[1672895543780,13.5598948,1254.8,1254.6,11.89022904]
[1672895545912,2.98917913,1254.7,1254.6,3.91956904]
[1672895546092,13.5598948,1254.8,1254.6,3.85596783]
[1672895547612,13.5598948,1254.8,1254.6,11.82661783]
[1672895547822,13.5598948,1254.8,1254.6,11.89021904]
[1672895552746,13.5598948,1254.8,1254.6,11.88821904]
[1672895552963,13.5598948,1254.8,1254.6,11.89021904]
[1672895553458,2.98917913,1254.7,1254.6,3.91956904]
[1672895553681,2.98917913,1254.7,1254.6,3.85596783]
[1672895556495,2.98917913,1254.7,1254.6,11.82662783]
[1672895556701,2.98917913,1254.7,1254.6,11.89022904]
[1672895559445,2.98917913,1254.7,1254.6,11.88690165]
[1672895564724,13.5598948,1254.8,1254.6,32.05895374]
[1672895565056,13.5598948,1254.8,1254.6,32.53751299]
[1672895571800,13.5598948,1254.8,1254.6,24.56685299]
[1672895572475,3.1098948,1254.8,1254.6,28.5560025]
[1672895572685,0.09296101,1254.8,1254.7,4.5]
[1672895572908,0.09296101,1254.8,1254.7,35.25338866]
[1672895573234,0.09296101,1254.8,1254.7,35.31698987]
[1672895573491,0.09296101,1254.8,1254.7,30.81698987]
[1672895574522,0.09296101,1254.8,1254.7,22.84695987]
[1672895578967,3.08214014,1254.8,1254.7,22.84695987]
[1672895579807,0.09296101,1254.8,1254.7,22.84695987]
[1672895580183,3.08214014,1254.8,1254.7,22.84695987]
[1672895580394,0.09296101,1254.8,1254.7,22.84695987]
[1672895580828,3.08214014,1254.8,1254.7,22.84695987]
[1672895582635,3.08214014,1254.8,1254.7,22.84471605]
[1672895585453,0.09296101,1254.8,1254.7,22.84471605]
[1672895586419,3.08214014,1254.8,1254.7,22.84471605]
[1672895586589,0.09296101,1254.8,1254.7,22.84471605]
[1672895587961,0.09296101,1254.8,1254.7,30.81474605]
[1672895588375,0.09296101,1254.8,1254.7,22.84471605]
[1672895590617,0.09296101,1254.8,1254.7,26.83386556]
[1672895590831,0.09296101,1254.8,1254.7,34.80389556]
[1672895591037,0.09296101,1254.8,1254.7,26.83386556]
[1672895591919,0.09296101,1254.8,1254.7,34.80389556]
[1672895592342,0.09296101,1254.8,1254.7,26.83386556]
[1672895598399,0.09296101,1254.8,1254.7,7.0505069]
[1672895602500,0.09296101,1254.8,1254.7,15.0205369]
[1672895603375,3.08214014,1254.8,1254.7,15.0205369]
[1672895604740,0.09296101,1254.8,1254.7,15.0205369]
[1672895606618,0.09296101,1254.8,1254.7,15.01822698]
[1672895607694,3.08214014,1254.8,1254.7,7.04819698]
[1672895608016,11.05153014,1254.8,1254.7,7.04819698]
[1672895608240,11.0792848,1254.8,1254.7,7.04819698]
[1672895610287,0.12071567,1254.8,1254.7,3.05904747]
[1672895610513,3.08183909,1254.8,1254.6,4.40399186]
[1672895610698,3.08183909,1254.8,1254.6,13.23767535]
[1672895610907,11.05135909,1254.8,1254.6,13.30127656]
[1672895611113,11.07911375,1254.8,1254.6,13.30127656]
[1672895611449,3.10959375,1254.8,1254.6,13.30127656]
[1672895611661,3.08183909,1254.8,1254.6,13.30127656]
[1672895616151,3.08183909,1254.8,1254.6,21.27175656]
[1672895618154,3.08183909,1254.8,1254.6,29.24241656]
[1672895621384,3.08183909,1254.8,1254.6,37.21307656]
[1672895623167,0.09296101,1254.8,1254.6,37.21307656]
[1672895627248,0.09296101,1254.8,1254.6,37.21043625]
[1672895628293,0.09296101,1254.8,1254.7,3.98914951]
[1672895628510,0.09296101,1254.8,1254.7,22.92920951]
[1672895628719,0.09296101,1254.8,1254.7,22.99281072]
[1672895632506,0.09296101,1254.8,1254.7,15.02278072]
[1672895632737,0.09296101,1254.8,1254.7,7.05275072]
[1672895633366,3.08183909,1254.8,1254.7,7.05275072]
[1672895634186,0.09296101,1254.8,1254.7,7.05275072]
[1672895635327,0.09296101,1254.8,1254.7,15.02278072]
[1672895635539,3.08183909,1254.8,1254.7,15.02278072]
[1672895639637,3.08183909,1254.8,1254.7,7.05275072]
[1672895641102,3.08183909,1254.8,1254.7,15.02278072]
[1672895645143,0.09296101,1254.8,1254.7,15.02278072]
[1672895645666,3.08183909,1254.8,1254.7,15.02278072]
[1672895646912,3.08183909,1254.8,1254.7,22.99281072]
[1672895647116,0.09296101,1254.8,1254.7,22.99281072]
[1672895647999,3.08183909,1254.8,1254.7,22.99281072]
[1672895650325,3.08183909,1254.8,1254.7,22.99013903]
[1672895657109,3.08183909,1254.8,1254.7,23.8380703]
[1672895658168,1.67577175,1254.8,1254.7,27.00396586]
[1672895658430,0.0746787,1255.1,1254.8,5.94375801]
[1672895658650,0.004,1254.9,1254.8,8.96885723]
[1672895658807,3.65946785,1255.1,1254.8,43.41343798]
[1672895659014,3.65946785,1255.1,1255.0,14.0]
[1672895659370,3.65946785,1255.1,1255.0,17.06360121]
[1672895659564,3.65946785,1255.1,1255.0,3.06360121]
[1672895659773,0.0746787,1255.1,1255.0,3.0]
[1672895662519,3.65946785,1255.1,1254.9,0.06360121]
[1672895662665,3.65946785,1255.1,1254.9,3.0]
[1672895662666,6.92793321,1255.1,1254.9,3.0]
[1672895662881,6.92793321,1255.1,1254.8,28.86485922]
[1672895662882,3.58478915,1255.0,1254.8,2.92635922]
[1672895663085,3.58478915,1255.0,1254.8,2.86275801]
[1672895663348,36.49051264,1255.1,1254.8,2.86275801]
[1672895663568,36.49080264,1255.1,1254.8,2.86275801]
[1672895664043,0.1406787,1255.1,1255.0,14.0]
[1672895664204,0.1406787,1255.1,1255.0,41.95711072]
[1672895664205,0.0746787,1255.1,1255.0,41.95711072]
[1672895664613,0.0746787,1255.1,1255.0,44.95711072]
[1672895664823,0.0746787,1255.1,1255.0,50.26279942]
[1672895665000,0.0746787,1255.1,1255.0,8.36928991]
[1672895665384,0.0746787,1255.1,1255.0,3.06360121]
[1672895665576,0.0746787,1255.1,1255.0,3.0]
[1672895666170,3.05932438,1255.1,1255.0,3.0]
[1672895669100,0.0746787,1255.1,1255.0,3.0]
[1672895669467,0.0746787,1255.1,1255.0,10.96812]
[1672895669685,0.0746787,1255.1,1255.0,18.99984121]
[1672895671210,0.0746787,1255.1,1255.0,35.85078784]
[1672895672210,0.0746787,1255.1,1255.0,27.88266784]
[1672895672355,0.0746787,1255.1,1255.0,11.94642784]
[1672895673048,0.0746787,1255.1,1255.0,19.91454784]
[1672895673614,0.0746787,1255.1,1255.0,11.94642784]
[1672895673845,16.0096587,1255.1,1255.0,3.06360121]
[1672895674119,16.0096587,1255.1,1255.0,3.0]
[1672895674120,3.12532438,1255.1,1255.0,3.0]
[1672895674356,3.05932438,1255.1,1254.9,25.03232121]
[1672895674710,3.05932438,1255.1,1254.9,33.00108121]
[1672895675088,3.05932438,1255.1,1254.9,17.06360121]
[1672895675395,3.05932438,1255.1,1254.9,25.03226121]
[1672895675668,3.05932438,1255.1,1254.9,33.00102121]
[1672895676033,3.05932438,1255.1,1254.9,40.96978121]
[1672895676253,3.05932438,1255.1,1254.9,46.14992513]
[1672895677047,0.0746787,1255.1,1254.9,46.14992513]
[1672895677615,3.05932438,1255.1,1254.9,46.14992513]
[1672895678710,3.05932438,1255.1,1254.9,46.14708049]
[1672895678865,3.05932438,1255.1,1254.9,40.96693657]
[1672895684984,3.05932438,1255.1,1254.9,32.99817657]
[1672895687018,3.05932438,1255.1,1254.9,18.99817657]
[1672895688584,3.05932438,1255.1,1254.9,32.99817657]
[1672895689538,3.05932438,1255.1,1254.9,40.96693657]
[1672895691372,3.05932438,1255.1,1254.9,50.13594554]
[1672895692570,3.05932438,1255.1,1254.9,42.16718554]
[1672895696910,3.05932438,1255.1,1254.9,34.19842554]
[1672895697129,2.98464568,1255.0,1254.9,34.19842554]
[1672895697855,3.1215138,1255.1,1254.9,42.16718554]
[1672895698074,3.0555138,1255.1,1254.9,50.13594554]
[1672895702470,3.0555138,1255.1,1255.0,3.98914951]
[1672895702679,3.0555138,1255.1,1255.0,33.7876808]
[1672895702962,3.0555138,1255.1,1255.0,33.84843737]
[1672895704958,3.0555138,1255.1,1255.0,25.88031737]
[1672895709413,3.0555138,1255.1,1255.0,33.84843737]
[1672895710579,3.0555138,1255.1,1255.0,25.88031737]
[1672895711424,3.0555138,1255.1,1255.0,33.84843737]
[1672895711784,3.0555138,1255.1,1255.0,25.88031737]
[1672895712469,3.0555138,1255.1,1255.0,33.84843737]
[1672895712874,3.0555138,1255.1,1255.0,25.88031737]
[1672895713264,3.0555138,1255.1,1255.0,33.84843737]
[1672895719050,0.0746787,1255.1,1255.0,33.84843737]
[1672895720147,0.0746787,1255.1,1255.0,33.84533782]
[1672895722746,3.0555138,1255.1,1255.0,33.84533782]
[1672895723085,0.0746787,1255.1,1255.0,33.84533782]
[1672895725461,0.11759425,1255.2,1255.0,50.55940457]
[1672895725745,0.11759425,1255.2,1255.1,57.77661951]
[1672895725933,0.11759425,1255.2,1255.1,58.51723554]
[1672895726105,0.11759425,1255.2,1255.1,58.99579479]
[1672895727565,0.11759425,1255.2,1255.1,59.22579479]
[1672895727773,0.11759425,1255.2,1255.1,59.24943479]
[1672895732311,0.92960099,1255.3,1255.2,13.00259424]
[1672895732541,0.92960099,1255.3,1255.2,47.17258161]
[1672895732904,0.92960099,1255.3,1255.2,47.65114086]
[1672895734703,0.92960099,1255.3,1255.2,43.15114086]
[1672895737131,0.92960099,1255.3,1255.2,43.14914086]
[1672895737332,0.92960099,1255.3,1255.2,43.15114086]
[1672895737551,0.92960099,1255.3,1255.2,43.14914086]
[1672895737865,0.92960099,1255.3,1255.2,43.15114086]
[1672895738927,0.92960099,1255.3,1255.2,43.14914086]
[1672895739147,0.92960099,1255.3,1255.2,43.15114086]
[1672895740549,0.92960099,1255.3,1255.2,43.14914086]
[1672895740767,0.92960099,1255.3,1255.2,43.15114086]
[1672895753104,0.92960099,1255.3,1255.2,43.05578086]
[1672895755104,0.92960099,1255.3,1255.2,78.05578086]
[1672895761533,0.92960099,1255.3,1255.2,78.27758086]
[1672895763054,0.92960099,1255.3,1255.2,78.27375717]
[1672895764885,0.92960099,1255.3,1255.2,77.82195717]
[1672895765099,0.92960099,1255.3,1255.2,39.92778588]
[1672895773771,0.92960099,1255.3,1255.2,31.54660957]
[1672895778668,1e-08,1255.3,1255.2,33.52418838]
[1672895778883,1e-08,1255.3,1255.2,33.75418838]
[1672895779713,1e-08,1255.3,1255.2,31.77660957]
[1672895780622,1e-08,1255.3,1255.2,31.54660957]
[1672895781878,1e-08,1255.3,1255.2,23.57975957]
[1672895783049,1e-08,1255.3,1255.2,31.54660957]
[1672895783391,1e-08,1255.3,1255.2,23.57975957]
[1672895783710,1e-08,1255.3,1255.2,15.61290957]
[1672895785348,1e-08,1255.3,1255.2,23.57975957]
[1672895785871,1e-08,1255.3,1255.2,15.61290957]
[1672895786024,1e-08,1255.3,1255.2,23.57975957]
[1672895787658,1e-08,1255.3,1255.2,31.54660957]
[1672895788226,1e-08,1255.3,1255.2,15.61290957]
[1672895788442,1e-08,1255.3,1255.2,7.64605957]
[1672895788652,0.00200001,1255.3,1255.2,7.64405957]
[1672895788909,1e-08,1255.3,1255.2,7.64605957]
[1672895789978,1e-08,1255.3,1255.2,15.61290957]
[1672895790283,1e-08,1255.3,1255.2,15.49531533]
[1672895790646,1e-08,1255.3,1255.2,23.46216533]
[1672895791804,1e-08,1255.3,1255.2,31.42901533]
[1672895792242,0.00200001,1255.3,1255.2,31.42701533]
[1672895792453,1e-08,1255.3,1255.2,31.42901533]
[1672895792957,1e-08,1255.3,1255.2,7.52846533]
[1672895793192,2.98083511,1255.3,1255.2,7.52846533]
[1672895796901,2.98083511,1255.3,1255.2,15.49531533]
[1672895798141,2.98083511,1255.3,1255.2,23.46216533]
[1672895799257,2.98083511,1255.3,1255.2,31.42901533]
[1672895799258,1e-08,1255.3,1255.2,31.42901533]
[1672895799586,1e-08,1255.3,1255.2,36.79095086]
[1672895801923,1e-08,1255.3,1255.2,36.79039123]
[1672895802106,1e-08,1255.3,1255.2,31.4284557]
[1672895819203,4.87283511,1255.3,1255.2,3.06019694]
[1672895819413,4.87283511,1255.3,1255.2,2.99944037]
[1672895823093,4.87283511,1255.3,1255.2,10.96629037]
[1672895823301,4.87283511,1255.3,1255.2,11.02704694]
[1672895823475,7.0608589,1255.3,1255.2,11.02704694]
[1672895823681,7.1268589,1255.3,1255.2,11.02704694]
[1672895823881,7.1268589,1255.3,1255.2,3.06019694]
[1672895824088,7.1268589,1255.3,1255.2,2.99944037]
[1672895824983,7.1268589,1255.3,1255.2,10.96629037]
[1672895825182,7.1268589,1255.3,1255.2,11.02704694]
[1672895825385,7.1268589,1255.3,1255.2,11.02412967]
[1672895826415,5.2348589,1255.3,1255.2,11.02412967]
[1672895827657,5.2348589,1255.3,1255.2,3.05727967]
[1672895827909,5.2348589,1255.3,1255.2,2.9965231]
[1672895841385,5.2348589,1255.3,1255.2,10.9633731]
[1672895841617,5.2348589,1255.3,1255.2,18.99097967]
[1672895841915,5.2348589,1255.3,1255.2,11.02412967]
[1672895842279,5.2348589,1255.3,1255.2,3.05727967]
[1672895842543,5.2348589,1255.3,1255.2,2.9965231]
[1672895846703,5.2348589,1255.3,1255.2,10.9633731]
[1672895847027,3.04683511,1255.3,1255.2,11.02412967]
[1672895847243,2.98083511,1255.3,1255.2,11.02412967]
[1672895848118,2.98083511,1255.3,1255.2,3.05727967]
[1672895848340,2.98083511,1255.3,1255.2,2.9965231]
[1672895849528,2.98083511,1255.3,1255.2,2.99336862]
[1672895850810,2.98083511,1255.3,1255.2,10.96021862]
[1672895851005,2.98083511,1255.3,1255.2,11.02097519]
[1672895851223,2.98083511,1255.3,1255.2,3.05412519]
[1672895851427,2.98083511,1255.3,1255.2,2.99336862]
[1672895852063,2.98083511,1255.3,1255.2,3.71557224]
[1672895857279,1e-08,1255.3,1255.2,3.71557224]
[1672895857850,2.98882879,1255.3,1255.2,3.71557224]
[1672895861324,1e-08,1255.3,1255.2,3.71557224]
[1672895861958,2.98874823,1255.3,1255.2,3.71557224]
[1672895862408,1e-08,1255.3,1255.2,3.71557224]
[1672895862635,2.98873433,1255.3,1255.2,3.71557224]
[1672895863882,2.98874738,1255.3,1255.2,3.71557224]
[1672895864287,2.98874738,1255.3,1255.2,27.61612224]
[1672895864489,2.98874738,1255.3,1255.2,27.67687881]
[1672895865489,2.98874738,1255.3,1255.2,19.71002881]
[1672895869333,2.98874738,1255.3,1255.2,31.66602832]
[1672895869334,2.98531094,1255.3,1255.2,31.66602832]
[1672895869514,2.98531094,1255.3,1255.2,37.02932415]
[1672895871759,2.98531094,1255.3,1255.2,21.09562415]
[1672895871955,2.98531094,1255.3,1255.2,15.73232832]
[1672895874607,2.98531094,1255.3,1255.2,7.76547832]
[1672895875047,2.98531094,1255.3,1255.2,15.73232832]
[1672895878247,2.98531094,1255.3,1255.2,31.66602832]
[1672895878977,13.8991246,1255.4,1255.2,31.66602832]
[1672895879147,13.8991246,1255.4,1255.3,37.89866]
[1672895879362,13.8991246,1255.4,1255.3,32.99319657]
[1672895879604,13.8991246,1255.4,1255.3,25.02697657]
[1672895879828,10.91381366,1255.4,1255.3,25.02697657]
[1672895879967,13.90149461,1255.4,1255.3,25.02697657]
[1672895880173,13.90149428,1255.4,1255.3,29.01612608]
[1672895880619,10.91381366,1255.4,1255.3,21.04990608]
[1672895881553,14.49860281,1255.4,1255.3,21.04990608]
[1672895883093,10.91381366,1255.4,1255.3,21.04990608]
[1672895883880,14.49860281,1255.4,1255.3,21.04990608]
[1672895884088,14.49860281,1255.4,1255.3,3.06075657]
[1672895884319,17.07821452,1255.4,1255.3,3.0]
[1672895884494,25.04379452,1255.4,1255.3,3.0]
[1672895884703,25.04379452,1255.4,1255.2,3.78296019]
[1672895884917,2.988106,1255.3,1255.2,7.71135313]
[1672895885173,2.988106,1255.3,1255.2,7.7721097]
[1672895885388,2.988106,1255.3,1255.2,3.78296019]
[1672895885706,2.988106,1255.3,1255.2,3.72220362]
[1672895885895,6.04345888,1255.3,1255.2,3.72220362]
[1672895886230,6.04345888,1255.3,1255.2,0.72220362]
[1672895886231,34.19080803,1255.3,1255.2,0.72220362]
[1672895886453,30.60821831,1255.3,1255.2,0.72220362]
[1672895886640,34.79187364,1255.3,1255.2,0.72220362]
[1672895886806,34.19235527,1255.3,1255.2,0.72220362]
[1672895887288,26.22613527,1255.3,1255.2,0.72220362]
[1672895887611,22.64199831,1255.3,1255.2,0.72220362]
[1672895887759,22.64199831,1255.3,1254.8,0.064]
[1672895887760,4.5,1255.2,1254.8,0.064]
[1672895887960,9.99585283,1254.9,1254.8,0.002]
[1672895888226,26.59747283,1254.9,1254.8,0.002]
[1672895888706,18.62871283,1254.9,1254.8,0.002]
[1672895888907,29.42663582,1254.9,1254.8,0.002]
[1672895890274,21.51007525,1254.9,1254.8,0.002]
[1672895890486,27.59201506,1254.9,1254.8,0.002]
[1672895890957,24.60983924,1254.9,1254.8,0.002]
[1672895891330,20.10983924,1254.9,1254.6,19.05204904]
[1672895892163,20.10983924,1254.9,1254.6,19.53060829]
[1672895894415,20.15983924,1254.9,1254.6,19.53060829]
[1672895894685,20.10983924,1254.9,1254.6,19.53060829]
[1672895895315,28.07862924,1254.9,1254.6,3.58972829]
[1672895895752,28.07862924,1254.9,1254.6,3.52372829]
[1672895896129,36.04741924,1254.9,1254.6,3.52372829]
[1672895897339,5.0981,1254.8,1254.6,3.52372829]
[1672895897604,5.1641,1254.8,1254.6,3.52372829]
[1672895898041,9.21884192,1254.8,1254.6,3.52372829]
[1672895898608,4.71884192,1254.8,1254.6,3.52372829]
[1672895898819,4.65284192,1254.8,1254.6,3.52372829]
[1672895899980,4.65284192,1254.8,1254.6,11.49437829]
[1672895900183,4.65284192,1254.8,1254.6,11.56037829]
[1672895901652,4.05474192,1254.8,1254.6,11.56037829]
[1672895902549,4.05474192,1254.8,1254.6,19.53103829]
[1672895902699,20.10983924,1254.9,1254.6,19.53103829]
[1672895905858,20.10983924,1254.9,1254.6,19.52903829]
[1672895906045,20.10983924,1254.9,1254.6,19.53103829]
[1672895906499,20.10983924,1254.9,1254.6,27.50169829]
[1672895906703,13.97789943,1254.9,1254.6,27.50169829]
[1672895907989,13.97989943,1254.9,1254.6,27.50169829]
[1672895910637,13.97989943,1254.9,1254.6,27.49969829]
[1672895910867,13.97989943,1254.9,1254.6,27.50169829]
[1672895911261,13.97989943,1254.9,1254.6,27.49791784]
[1672895911455,16.60999937,1254.9,1254.6,27.49791784]
[1672895912278,13.38179943,1254.9,1254.6,31.48706735]
[1672895913067,11.46879943,1254.9,1254.6,31.48706735]
[1672895923111,11.51879943,1254.9,1254.6,31.48706735]
[1672895923325,11.46879943,1254.9,1254.6,31.48706735]
[1672895924858,11.46879943,1254.9,1254.8,7.96939]
[1672895924859,14.45097525,1254.9,1254.8,7.96939]
[1672895925007,14.45097525,1254.9,1254.8,8.03539]
[1672895925008,3.05037525,1254.9,1254.8,8.03539]
[1672895925219,2.98437525,1254.9,1254.8,8.03539]
[1672895925635,2.98437525,1254.9,1254.8,0.066]
[1672895925903,2.98437525,1254.9,1254.7,27.96405951]
[1672895942471,2.98217582,1254.9,1254.7,27.96405951]
[1672895942717,2.98217582,1254.8,1254.7,27.96405951]
[1672895942884,7.54817582,1254.9,1254.7,27.96405951]
[1672895943110,3.04817582,1254.9,1254.7,27.96405951]
[1672895943320,2.98217582,1254.9,1254.7,27.96405951]
[1672895944052,2.98217582,1254.8,1254.7,27.96405951]
[1672895945143,2.98217582,1254.8,1254.7,12.02473951]
[1672895949721,2.98217582,1254.8,1254.7,41.96479951]
[1672895949952,3.04817582,1254.9,1254.7,50.60709538]
[1672895950294,2.98217582,1254.9,1254.8,26.90817]
[1672895950463,2.98217582,1254.9,1254.8,26.97417]
[1672895951674,13.45627582,1255.0,1254.8,30.96331951]
[1672895954128,13.45627582,1255.0,1254.8,22.99392951]
[1672895954597,13.45627582,1255.0,1254.8,15.02453951]
[1672895957931,13.45627582,1255.0,1254.8,19.52095546]
[1672895960334,13.45627582,1255.0,1254.8,15.02453951]
[1672895960755,13.40627582,1255.0,1254.8,15.02453951]
[1672895966800,10.4241,1255.0,1254.8,15.02453951]
[1672895966949,10.4241,1255.0,1254.8,30.96331951]
[1672895967429,10.4241,1255.0,1254.8,22.99392951]
[1672895967631,10.4241,1255.0,1254.8,28.28723546]
[1672895968210,10.4241,1255.0,1254.9,19.92666951]
[1672895968420,10.4241,1255.0,1254.9,30.96142951]
[1672895969008,10.4241,1255.0,1254.9,3.066]
[1672895969166,37.31063582,1255.0,1254.9,3.0]
[1672895969533,29.34251582,1255.0,1254.8,3.54455925]
[1672895969690,29.34251582,1255.0,1254.8,7.46770876]
[1672895970049,29.34251582,1255.0,1254.8,7.53370876]
[1672895970834,21.37439582,1255.0,1254.8,7.53370876]
[1672895972157,21.37439582,1255.0,1254.8,7.05514951]
[1672895974750,13.40627582,1255.0,1254.8,7.05514951]
[1672895974931,21.37442582,1255.0,1254.8,7.05514951]
[1672895975308,13.40627582,1255.0,1254.8,7.05514951]
[1672895976676,13.40627582,1255.0,1254.8,15.02445951]
[1672895978615,17.18232163,1255.0,1254.8,3.066]
[1672895978831,17.18232163,1255.0,1254.8,3.0]
[1672895979496,17.18232163,1255.0,1254.8,10.96935]
[1672895979662,17.18232163,1255.0,1254.8,11.03535]
[1672895985065,17.18232163,1255.0,1254.8,11.03268534]
[1672895986750,2.98217582,1254.9,1254.8,11.03268534]
[1672895986960,17.18232163,1255.0,1254.8,11.03268534]
[1672895988702,17.18232163,1255.0,1254.8,3.06333534]
[1672895988959,17.18232163,1255.0,1254.8,2.99733534]
[1672895990833,2.98217582,1254.9,1254.8,2.99733534]
[1672895991546,2.98217582,1254.9,1254.8,18.93611534]
[1672895991751,13.40627582,1255.0,1254.8,11.03272534]
[1672895992416,2.98217582,1254.9,1254.8,11.03272534]
[1672895992960,13.40627582,1255.0,1254.8,11.03272534]
[1672895993558,2.98217582,1254.9,1254.8,11.03272534]
[1672895993747,13.40627582,1255.0,1254.8,11.03272534]
[1672895996767,2.98217582,1254.9,1254.8,11.03272534]
[1672896000083,2.98217582,1254.9,1254.8,3.06333534]
[1672896000278,2.98217582,1254.9,1254.8,2.99733534]
[1672896000635,2.98217582,1254.9,1254.8,10.96672534]
[1672896000821,2.98217582,1254.9,1254.8,11.03272534]
[1672896007386,2.98217582,1254.9,1254.8,11.0306678]
[1672896028697,2.98217582,1254.9,1254.8,11.02826925]
[1672896031027,2.97900164,1254.9,1254.8,11.02826925]
[1672896032161,2.97900164,1254.9,1254.8,11.82473511]
[1672896033225,2.97900164,1254.9,1254.8,3.85534511]
[1672896033413,2.97900164,1254.9,1254.8,3.78934511]
[1672896034051,2.97900164,1254.9,1254.8,11.75873511]
[1672896034295,2.97900164,1254.9,1254.8,3.85534511]
[1672896034679,2.97900164,1254.9,1254.8,3.78934511]
[1672896036044,2.97900164,1254.9,1254.8,11.75873511]
[1672896036258,2.97900164,1254.9,1254.8,11.82473511]
[1672896037725,2.97900164,1254.9,1254.8,19.79412511]
[1672896038892,2.97900164,1254.9,1254.8,27.76351511]
[1672896039671,2.97900164,1254.9,1254.8,19.79412511]
[1672896039984,2.97900164,1254.9,1254.8,27.76351511]
[1672896054398,2.97900164,1254.9,1254.8,31.75266462]
[1672896054797,13.40310164,1255.0,1254.8,31.75266462]
[1672896055034,2.97900164,1254.9,1254.8,31.75039087]
[1672896055239,13.40310164,1255.0,1254.8,31.75039087]
[1672896056154,2.97900164,1254.9,1254.8,31.75039087]
[1672896056364,13.40310164,1255.0,1254.8,39.10096755]
[1672896056574,13.40310164,1255.0,1254.8,37.12263012]
[1672896069209,13.40310164,1255.0,1254.9,3.98914951]
[1672896069542,13.40310164,1255.0,1254.9,27.89542951]
[1672896069706,13.40310164,1255.0,1254.9,30.96142951]
[1672896075400,13.40310164,1255.0,1254.9,48.93415805]
[1672896075401,0.066,1255.0,1254.9,48.93415805]
[1672896075612,0.052,1255.0,1254.9,55.24136094]
[1672896075857,0.052,1255.0,1254.9,57.21943386]
[1672896076046,2.97900164,1255.2,1254.9,57.21943386]
[1672896076265,2.97900164,1255.2,1255.0,6.98914951]
[1672896076609,2.97900164,1255.2,1255.1,11.95663951]
[1672896076829,2.97900164,1255.2,1255.1,22.99012951]
[1672896077502,2.87900164,1255.2,1255.1,30.95761951]
[1672896078383,2.87900164,1255.2,1255.1,44.95761951]
[1672896078597,10.40150001,1255.3,1255.1,48.93034805]
[1672896078923,10.40150001,1255.3,1255.2,30.88969951]
[1672896079139,10.40150001,1255.3,1255.2,30.95569951]
[1672896083544,0.06400001,1255.3,1255.2,30.95569951]
[1672896083874,11.88581367,1255.4,1255.2,30.95569951]
[1672896084214,11.88581367,1255.4,1255.2,35.05700172]
[1672896084428,14.86783977,1255.4,1255.2,35.05700172]
[1672896090503,14.86783977,1255.4,1255.2,3.066]
[1672896090504,2.9820261,1255.3,1255.2,3.066]
[1672896090679,10.9482461,1255.3,1255.1,0.066]
[1672896090883,4.5,1255.2,1254.9,37.97098]
[1672896091088,20.92064611,1255.3,1255.0,7.96806]
[1672896091299,21.51854611,1255.3,1255.0,0.066]
[1672896091602,27.03854357,1255.3,1255.0,7.96797]
[1672896091757,27.03854357,1255.3,1255.0,7.96997]
[1672896091907,27.03854357,1255.3,1255.0,8.03397]
[1672896092449,2.9820261,1255.2,1255.1,3.0]
[1672896092638,5.68588046,1255.2,1255.1,3.0]
[1672896092860,5.74988047,1255.2,1255.1,3.0]
[1672896095468,5.74988047,1255.2,1255.0,3.066]
[1672896095469,5.75009068,1255.2,1255.0,3.066]
[1672896095620,5.75009068,1255.2,1255.0,3.0]
[1672896096159,5.75009068,1255.2,1255.0,10.96807]
[1672896096354,5.75009068,1255.2,1255.0,11.03407]
[1672896096557,5.75009068,1255.2,1255.0,3.066]
[1672896096773,5.75009068,1255.2,1255.0,3.0]
[1672896097131,5.75009068,1255.2,1254.9,41.96011951]
[1672896097132,2.98223631,1255.1,1254.9,18.05514951]
[1672896099223,2.98223631,1255.1,1254.9,26.02362951]
[1672896099600,2.98223631,1255.1,1254.9,33.99238951]
[1672896104982,18.62879068,1255.2,1254.9,26.02362951]
[1672896105198,2.98223631,1255.1,1254.9,26.02362951]
[1672896105620,2.98223631,1255.1,1254.9,19.99238951]
[1672896106669,2.98223631,1255.1,1254.9,12.02362951]
[1672896107400,2.98223631,1255.1,1254.9,19.99238951]
[1672896109365,2.98223631,1255.1,1254.9,0.066]
[1672896109366,2.98223631,1255.0,1254.9,0.066]
[1672896109582,25.32947631,1255.0,1254.9,3.0]
[1672896109769,25.39347632,1255.0,1254.9,3.0]
[1672896110450,20.89347632,1255.0,1254.8,14.86246586]
[1672896110771,20.89347632,1255.0,1254.8,18.85161537]
[1672896111246,28.86159632,1255.0,1254.8,18.85161537]
[1672896111457,34.17874461,1255.0,1254.8,18.85161537]
[1672896111662,2.98223631,1254.9,1254.8,0.86246586]
[1672896111921,18.91975631,1254.9,1254.8,0.79646586]
[1672896112102,24.73104406,1254.9,1254.8,0.79646586]
[1672896113023,16.76228406,1254.9,1254.8,0.79646586]
[1672896113466,13.78004775,1254.9,1254.8,0.79646586]
[1672896114284,5.81128775,1254.9,1254.8,0.79646586]
[1672896115705,1.97500001,1254.9,1254.8,0.79646586]
[1672896116019,1.911,1254.9,1254.8,0.79646586]
[1672896118095,20.83075631,1254.9,1254.8,0.79646586]
[1672896118297,20.89475632,1254.9,1254.8,0.79646586]
[1672896119369,12.92599632,1254.9,1254.8,0.79646586]
[1672896119627,16.87187818,1254.9,1254.8,0.79646586]
[1672896120137,24.84063818,1254.9,1254.8,0.79646586]
[1672896120514,16.87187818,1254.9,1254.8,0.79646586]
[1672896121571,8.90311818,1254.9,1254.8,0.79646586]
[1672896122512,5.92088187,1254.9,1254.8,0.79646586]
[1672896123603,8.90311818,1254.9,1254.8,0.79646586]
[1672896124039,5.92088187,1254.9,1254.8,0.79646586]
[1672896124356,8.90311818,1254.9,1254.8,0.79646586]
[1672896125187,1.97500001,1254.9,1254.8,8.76585586]
[1672896125402,1.97500001,1254.9,1254.8,8.83185586]
[1672896125403,1.911,1254.9,1254.8,8.83185586]
[1672896126555,4.95943575,1255.0,1254.8,8.83185586]
[1672896126706,4.89543574,1255.0,1254.8,8.83185586]
[1672896126914,8.67874203,1255.0,1254.8,8.83185586]
[1672896127126,8.74274204,1255.0,1254.8,0.86246586]
[1672896127335,8.74274204,1255.0,1254.8,8.76572586]
[1672896127607,8.74274204,1255.0,1254.8,8.83172586]
[1672896127812,8.74274204,1255.0,1254.8,16.80111586]
[1672896127980,13.24274204,1255.0,1254.8,16.79790003]
[1672896128342,8.74274204,1255.0,1254.8,8.82851003]
[1672896128561,8.74274204,1255.0,1254.8,0.85925003]
[1672896128748,8.74274204,1255.0,1254.8,8.76251003]
[1672896129078,8.74274204,1255.0,1254.8,24.76729003]
[1672896129229,4.95723632,1255.0,1254.8,24.76729003]